lending/lending_fUSD_20260110
["ID","MTS","AMOUNT","RATE_DAILY","PERIOD"]
[401258004,1768079163720,-1371.3530646,0.0005,120]
[401258005,1768079163783,-3792.06414945,0.0005,120]
[401258006,1768079163847,-653.23002612,0.0005,120]
[401258007,1768079163912,-947.25007226,0.0005,120]
[401258008,1768079163977,-1608.02903454,0.0005,120]
[401258009,1768079164041,-1713.35674875,0.0005,120]
[401258010,1768079164109,-1197.75309513,0.0005,120]
[401258011,1768079164176,-32556.92486126,0.0005,30]
[401258012,1768079164240,-10105.75,0.0005,120]
[401258013,1768079164305,-2081.06235406,0.0005,120]
[401258014,1768079164371,-10000.0,0.0005,120]
[401258015,1768079164437,-6204.69518227,0.0005,60]
[401258016,1768079164503,-12576.0,0.0005,120]
[401258017,1768079164572,-1718.71138215,0.0005,120]
[401258018,1768079164802,-405.3880293,0.0005,30]
[401258019,1768079164868,-4911.68071492,0.0005,120]
[401258020,1768079164938,-334.85620526,0.0005,30]
[401258021,1768079165006,-10000.0,0.0005,120]
[401258022,1768079165074,-151.10295014,0.0005,120]
[401258023,1768079165140,-485.146713,0.0005,120]
[401258024,1768079165206,-2237.89655188,0.0005,120]
[401258025,1768079165273,-5633.44,0.0005,30]
[401258026,1768079165340,-4162.27,0.0005,30]
[401258027,1768079165408,-7694.8,0.0005,30]
[401258028,1768079165477,-2971.73308228,0.0005,120]
[401258029,1768079165544,-805.0,0.0005,30]
[401258030,1768079165609,-1034.48735267,0.0005,120]
[401258031,1768079165673,-166.0,0.0005,120]
[401258032,1768079165734,-1657.3924125,0.0005,120]
[401258033,1768079165797,-10198.95894851,0.0005,120]
[401258034,1768079165859,-253.0,0.0005,67]
[401258035,1768079165920,-15727.11112278,0.0005,120]
[401258036,1768079165984,-152.0,0.000501,120]
[401258037,1768079166047,-584.0,0.00050105,31]
[401258038,1768079166125,-4820.0,0.00050362,120]
[401258039,1768079166191,-1330.0,0.00050362,120]
[401258040,1768079166263,-1405.0,0.00050362,120]
[401258041,1768079166349,-2437.0,0.00050362,120]
[401258042,1768079166418,-3468.0,0.00050362,120]
[401258043,1768079166484,-1266.0,0.00050476,120]
[401258044,1768079166550,-505.0,0.00050476,120]
[401258045,1768079166615,-2000.0,0.000505,120]
[401258046,1768079166681,-152.0,0.000505,120]
[401258047,1768079166745,-584.0,0.00050715,31]
[401258048,1768079166809,-152.0,0.000508,120]
[401258049,1768079166877,-2323.59,0.00050958,120]
[401258050,1768079166941,-1000.0,0.00050999,120]
[401258051,1768079167005,-7000.0,0.00051,120]
[401258052,1768079167069,-150.0,0.00051,40]
[401258053,1768079167139,-2155.9530089,0.00051,120]
[401258054,1768079167210,-500.0,0.00051,120]
[401258055,1768079167279,-500.0,0.00051,120]
[401258056,1768079167345,-1000.0,0.00051,120]
[401258057,1768079167413,-2000.0,0.00051,120]
[401258058,1768079167482,-555.833349,0.00051,120]
[401258059,1768079167548,-15097.56679262,0.00051,120]
[401258060,1768079167613,-405.63,0.00051,120]
[401258061,1768079167680,-10000.0,0.00051,120]
[401258062,1768079167745,-22707.0,0.00051,120]
[401258063,1768079167810,-3000.0,0.00051,120]
[401258064,1768079167876,-3686.95024442,0.00051,120]
[401258065,1768079167940,-3896.50356474,0.00051,61]
[401258066,1768079168004,-253.0,0.00051,70]
[401258067,1768079168072,-320.24104503,0.0005109,120]
[401258068,1768079168144,-38653.0,0.000511,120]
[401258069,1768079168218,-152.0,0.000511,120]
[401258070,1768079168286,-466.97,0.0005114,30]
[401258071,1768079168352,-342.9,0.0005114,30]
[401258072,1768079168419,-466.97,0.0005114,30]
[401258073,1768079168483,-556.55,0.0005114,30]
[401258074,1768079168551,-466.97,0.0005114,30]
[401258075,1768079168618,-466.97,0.0005114,30]
[401258076,1768079168682,-466.97,0.0005114,30]
[401258077,1768079168747,-466.97,0.0005114,30]
[401258078,1768079168812,-466.97,0.0005114,30]
[401258079,1768079168876,-466.97,0.0005114,30]
[401258080,1768079168942,-2024.54516302,0.000512,120]
[401258081,1768079169007,-3697.77679644,0.00051234,31]
[401258082,1768079169078,-584.0,0.00051325,32]
[401258083,1768079169143,-152.0,0.000514,120]
[401258084,1768079169212,-152.0,0.000517,120]
[401258085,1768079169279,-38711.77,0.00051869,120]
[401258086,1768079169343,-41846.85,0.000519,120]
[401258087,1768079169414,-103430.74316573,0.000519,120]
[401258088,1768079169480,-100000.0,0.000519,120]
[401258089,1768079169545,-584.0,0.00051935,33]
[401258090,1768079169609,-300.0,0.00051941,30]
[401258091,1768079169676,-466.97,0.00051941,30]
[401258092,1768079169740,-1323.4,0.00051941,30]
[401258093,1768079169802,-342.9,0.00051941,30]
[401258094,1768079169866,-482.91,0.00051941,30]
[401258095,1768079169928,-466.97,0.00051941,30]
[401258096,1768079169991,-466.97,0.00051941,30]
[401258097,1768079170059,-1686.45299202,0.0005198,110]
[401258098,1768079170123,-1000.0,0.00051999,120]
[401258099,1768079170185,-1958.5,0.00052,120]
[401258100,1768079170252,-1159.0,0.00052,120]
[401258101,1768079170316,-200.0,0.00052,40]
[401258102,1768079170381,-4000.0,0.00052,120]
[401258103,1768079170445,-500.0,0.00052,120]
[401258104,1768079170509,-500.0,0.00052,120]
[401258105,1768079170573,-1000.0,0.00052,120]
[401258106,1768079170636,-2811.0,0.00052,120]
[401258107,1768079170696,-200.0,0.00052,120]
[401258108,1768079170757,-1529.40867753,0.00052,120]
[401258109,1768079170818,-838.77321395,0.00052,120]
[401258110,1768079170879,-20000.0,0.00052,120]
[401258111,1768079170939,-334.36971347,0.00052,120]
[401258112,1768079171002,-899.72074984,0.00052,30]
[401258113,1768079171317,-1383.4189181,0.00052,120]
[401258114,1768079171380,-189.56137011,0.00052,120]
[401258115,1768079171442,-54238.63035188,0.00052,90]
[401258116,1768079171519,-253.0,0.00052,74]
[401258117,1768079171582,-6059.9,0.00052004,120]
[401258118,1768079171648,-3101.48135236,0.00052054,120]
[401258119,1768079171713,-2323.59,0.00052054,120]
[401258120,1768079171776,-3340.03,0.00052055,120]
[401258121,1768079171840,-152.0,0.000521,120]
[401258122,1768079171904,-152.0,0.000523,120]
[401258123,1768079171967,-55622.60511996,0.000524,40]
[401258124,1768079172031,-2043.0,0.0005246,75]
[401258125,1768079172096,-316.76370324,0.00052475,120]
[401258126,1768079172159,-3488.86841803,0.000525,120]
[401258127,1768079172221,-8993.95973722,0.000525,120]
[401258128,1768079172284,-584.0,0.00052545,33]
[401258129,1768079172349,-214.43318586,0.00052603,120]
[401258130,1768079172412,-3627667.18,0.0005269,120]
[401258131,1768079172476,-5084.0,0.000528,120]
[401258132,1768079172538,-668.39408701,0.000528,120]
[401258133,1768079172603,-152.0,0.000528,120]
[401258134,1768079172666,-57800.49574292,0.0005288,30]
[401258135,1768079172725,-150.0,0.0005298,120]
[401258136,1768079172783,-500.0,0.00053,120]
[401258137,1768079172843,-500.0,0.00053,120]
[401258138,1768079172903,-5000.0,0.00053,120]
[401258139,1768079172963,-1000.0,0.00053,120]
[401258140,1768079173024,-10000.0,0.00053,120]
[401258141,1768079173087,-300000.0,0.00053,120]
[401258142,1768079173152,-1973.8379231,0.00053,120]
[401258143,1768079173219,-1920.30123432,0.00053,120]
[401258144,1768079173287,-10080.0,0.00053,120]
[401258145,1768079173352,-23900.01,0.00053,120]
[401258146,1768079173417,-270.76677076,0.00053,120]
[401258147,1768079173481,-22707.0,0.00053,120]
[401258148,1768079173545,-383.19470266,0.00053,120]
[401258149,1768079173607,-1860.0,0.00053,120]
[401258150,1768079173668,-152.0,0.00053,120]
[401258151,1768079173729,-253.0,0.00053,78]
[401258152,1768079173790,-1119.2818372,0.0005312,30]
[401258153,1768079173853,-2323.59,0.0005315,120]
[401258154,1768079173917,-584.0,0.00053156,34]
[401258155,1768079173979,-1630.0,0.00053197,120]
[401258156,1768079174043,-9000.0,0.00053219,120]
[401258157,1768079174107,-1822.78522251,0.00053333,120]
[401258158,1768079174171,-1629.62,0.00053353,120]
[401258159,1768079174234,-4820.0,0.00053362,120]
[401258160,1768079174295,-1330.0,0.00053362,120]
[401258161,1768079174357,-1405.0,0.00053362,120]
[401258162,1768079174419,-2437.0,0.00053362,120]
[401258163,1768079174482,-3468.0,0.00053362,120]
[401258164,1768079174544,-1266.0,0.00053476,120]
[401258165,1768079174607,-505.0,0.00053476,120]
[401258166,1768079174667,-1710.6627481,0.00053495,120]
[401258167,1768079174727,-1092.32288718,0.000535,120]
[401258168,1768079174787,-200000.0,0.000535,120]
[401258169,1768079174847,-152.0,0.000535,120]
[401258170,1768079174920,-152.0,0.000536,120]
[401258171,1768079174992,-1121.04207254,0.0005369,30]
[401258172,1768079175060,-85161.07367279,0.000537,30]
[401258173,1768079175122,-584.0,0.00053766,34]
[401258174,1768079175182,-2619.98243549,0.000538,120]
[401258175,1768079175241,-1683.50085092,0.000538,120]
[401258176,1768079175297,-1455.91179591,0.000538,120]
[401258177,1768079175356,-1345.68035637,0.000538,120]
[401258178,1768079175417,-3170.04932759,0.000538,120]
[401258179,1768079175477,-50000.0,0.000538,30]
[401258180,1768079175538,-1353.28341305,0.000538,120]
[401258181,1768079175599,-2227.96576443,0.0005385,120]
[401258182,1768079175662,-241.2790937,0.000539,45]
[401258183,1768079175720,-2165.78184635,0.000539,30]
[401258184,1768079175779,-82821.38962258,0.0005392,120]
[401258185,1768079175837,-110000.0,0.0005398,30]
[401258186,1768079175900,-8680.3325952,0.0005398,30]
[401258187,1768079175960,-1000.0,0.00053999,120]
[401258188,1768079176023,-500.0,0.00054,120]
[401258189,1768079176084,-500.0,0.00054,120]
[401258190,1768079176154,-1000.0,0.00054,120]
[401258191,1768079176218,-400.0,0.00054,120]
[401258192,1768079176283,-200.0,0.00054,120]
[401258193,1768079176342,-28337.24,0.00054,120]
[401258194,1768079176405,-5000.0,0.00054,120]
[401258195,1768079176468,-1406.04851126,0.00054,120]
[401258196,1768079176527,-160.41091,0.00054,120]
[401258197,1768079176588,-2000.0,0.00054,120]
[401258198,1768079176647,-4608.68780553,0.00054,120]
[401258199,1768079176706,-6769.999997,0.00054,120]
[401258200,1768079176766,-253.0,0.00054,81]
[401258201,1768079176826,-1174.43,0.00054093,120]
[401258202,1768079176889,-152.0,0.000541,120]
[401258203,1768079176948,-152.0,0.000542,120]
[401258204,1768079177007,-268.95590903,0.00054203,120]
[401258205,1768079177068,-2323.59,0.00054246,120]
[401258206,1768079177126,-221.18173065,0.00054249,120]
[401258207,1768079177367,-1800.0,0.00054321,60]
[401258208,1768079177429,-584.0,0.00054376,35]
[401258209,1768079177491,-9876.0000009,0.0005439,120]
[401258210,1768079177552,-13958.3091,0.00054444,30]
[401258211,1768079177609,-600.0,0.00054465,120]
[401258212,1768079177665,-600.0,0.00054465,120]
[401258213,1768079177720,-600.0,0.00054465,120]
[401258214,1768079177776,-600.0,0.00054465,120]
[401258215,1768079177831,-600.0,0.00054465,120]
[401258216,1768079177888,-600.0,0.00054465,120]
[401258217,1768079177945,-600.0,0.00054465,120]
[401258218,1768079178001,-600.0,0.00054465,120]
[401258219,1768079178061,-600.0,0.00054465,120]
[401258220,1768079178123,-600.0,0.00054465,120]
[401258221,1768079178187,-548.41573521,0.00054465,120]
[401258222,1768079178251,-400.0,0.000545,120]
[401258223,1768079178313,-5539.0,0.000545,30]
[401258224,1768079178374,-4000.0,0.0005452,74]
[401258225,1768079178436,-151.0,0.00054521,30]
[401258226,1768079178498,-151.0,0.00054521,30]
[401258227,1768079178560,-600.0,0.00054521,30]
[401258228,1768079178621,-151.0,0.00054521,30]
[401258229,1768079178683,-600.0,0.00054521,30]
[401258230,1768079178743,-600.0,0.00054521,30]
[401258231,1768079178804,-600.0,0.00054521,30]
[401258232,1768079178866,-165.96460269,0.00054521,30]
[401258233,1768079178926,-250.0,0.00054521,30]
[401258234,1768079178987,-250.0,0.00054521,30]
[401258235,1768079179047,-250.0,0.00054521,30]
[401258236,1768079179111,-998.0,0.00054521,30]
[401258237,1768079179172,-998.0,0.00054521,30]
[401258238,1768079179236,-717.73606294,0.00054521,30]
[401258239,1768079179302,-250.0,0.00054521,30]
[401258240,1768079179365,-500.0,0.00054521,30]
[401258241,1768079179428,-250.0,0.00054521,30]
[401258242,1768079179491,-250.0,0.00054521,30]
[401258243,1768079179552,-250.0,0.00054521,30]
[401258244,1768079179616,-500.0,0.00054521,30]
[401258245,1768079179681,-500.0,0.00054521,30]
[401258246,1768079179740,-250.0,0.00054521,30]
[401258247,1768079179802,-518.5,0.00054521,30]
[401258248,1768079179865,-250.0,0.00054521,30]
[401258249,1768079179932,-500.0,0.00054521,30]
[401258250,1768079180003,-250.0,0.00054521,30]
[401258251,1768079180067,-151.0,0.00054521,30]
[401258252,1768079180133,-250.0,0.00054521,30]
[401258253,1768079180196,-250.0,0.00054521,30]
[401258254,1768079180260,-537.6845,0.00054521,30]
[401258255,1768079180325,-6888.0,0.00054521,30]
[401258256,1768079180388,-156.587,0.00054521,30]
[401258257,1768079180455,-557.5788265,0.00054521,30]
[401258258,1768079180525,-7142.856,0.00054521,30]
[401258259,1768079180590,-250.0,0.00054521,30]
[401258260,1768079180655,-500.0,0.00054521,30]
[401258261,1768079180715,-162.380719,0.00054521,30]
[401258262,1768079180775,-7407.141672,0.00054521,30]
[401258263,1768079180832,-250.0,0.00054521,30]
[401258264,1768079180892,-250.0,0.00054521,30]
[401258265,1768079180955,-250.0,0.00054521,30]
[401258266,1768079181016,-250.0,0.00054521,30]
[401258267,1768079181080,-500.0,0.00054521,30]
[401258268,1768079181143,-168.3888056,0.00054521,30]
[401258269,1768079181208,-250.0,0.00054521,30]
[401258270,1768079181271,-250.0,0.00054521,30]
[401258271,1768079181334,-250.0,0.00054521,30]
[401258272,1768079181398,-250.0,0.00054521,30]
[401258273,1768079181461,-500.0,0.00054521,30]
[401258274,1768079181524,-174.61919141,0.00054521,30]
[401258275,1768079181592,-250.0,0.00054521,30]
[401258276,1768079181653,-250.0,0.00054521,30]
[401258277,1768079181714,-250.0,0.00054521,30]
[401258278,1768079181775,-250.0,0.00054521,30]
[401258279,1768079181835,-250.0,0.00054521,30]
[401258280,1768079181895,-181.08010149,0.00054521,30]
[401258281,1768079181955,-250.0,0.00054521,30]
[401258282,1768079182020,-250.0,0.00054521,30]
[401258283,1768079182089,-7681.20591386,0.00054521,30]
[401258284,1768079182154,-10000.0,0.00054521,30]
[401258285,1768079182220,-500.0,0.00054521,30]
[401258286,1768079182279,-346.27177485,0.00054521,30]
[401258287,1768079182339,-250.0,0.00054521,30]
[401258288,1768079182400,-187.78006524,0.00054521,30]
[401258289,1768079182462,-250.0,0.00054521,30]
[401258290,1768079182523,-250.0,0.00054521,30]
[401258291,1768079182591,-7965.41053268,0.00054521,30]
[401258292,1768079182652,-10000.0,0.00054521,30]
[401258293,1768079182715,-500.0,0.00054521,30]
[401258294,1768079182777,-250.0,0.00054521,30]
[401258295,1768079182840,-250.0,0.00054521,30]
[401258296,1768079182903,-500.0,0.00054521,30]
[401258297,1768079182964,-250.0,0.00054521,30]
[401258298,1768079183025,-500.0,0.00054521,30]
[401258299,1768079183087,-250.0,0.00054521,30]
[401258300,1768079183151,-500.0,0.00054521,30]
[401258301,1768079183219,-250.0,0.00054521,30]
[401258302,1768079183534,-500.0,0.00054521,30]
[401258303,1768079183599,-500.0,0.00054521,30]
[401258304,1768079183664,-10000.0,0.00054521,30]
[401258305,1768079183726,-500.0,0.00054521,30]
[401258306,1768079183789,-9328.80849625,0.00054521,30]
[401258307,1768079183851,-500.0,0.00054521,30]
[401258308,1768079183920,-500.0,0.00054521,30]
[401258309,1768079183983,-500.0,0.00054521,30]
[401258310,1768079184047,-500.0,0.00054521,30]
[401258311,1768079184419,1300.0,0.00047485,60]
[401258312,1768079184487,9145362.51416626,0.0005443,30]
[401258313,1768079313791,-80.0,0.00014987,2]
[401258314,1768079313815,-500.0,0.00014987,2]
[401258315,1768079313839,-500.0,0.00014987,2]
[401258316,1768079313863,-195.0,0.00014989,2]
[401258317,1768079313887,-250.0,0.0001499,2]
[401258318,1768079313911,-500.0,0.0001502,2]
[401258319,1768079313935,-500.0,0.0001502,2]
[401258320,1768079313960,-195.0,0.00015033,2]
[401258321,1768079313983,-500.0,0.00015173,2]
[401258322,1768079314007,-500.0,0.00015173,2]
[401258323,1768079314030,-200.0,0.00015311,2]
[401258324,1768079314364,-150.0,0.00015396,2]
[401258325,1768079314396,-300.0,0.0001572,2]
[401258326,1768079314423,-1000.0,0.00015721,2]
[401258327,1768079314447,-1000.0,0.00015721,2]
[401258328,1768079314473,-166.66,0.00015736,2]
[401258329,1768079314497,-151.0,0.00015856,2]
[401258330,1768079314522,-9999.99,0.00015989,2]
[401258331,1768079314547,-999.99,0.00015989,2]
[401258332,1768079314572,-150.99,0.00015989,2]
[401258333,1768079314597,-9999.99,0.00015989,2]
[401258334,1768079314624,-166.66,0.00016067,2]
[401258335,1768079314650,-150.0,0.000162,2]
[401258336,1768079314675,-196.21798024,0.000162,2]
[401258337,1768079314699,-150.0,0.000162,2]
[401258338,1768079314724,-150.0,0.000162,2]
[401258339,1768079314753,-150.0,0.000162,2]
[401258340,1768079314783,-223.10788253,0.000162,2]
[401258341,1768079314808,-150.0,0.000162,2]
[401258342,1768079314836,-150.0,0.000162,2]
[401258343,1768079314862,-231.22039699,0.000162,2]
[401258344,1768079314887,-150.0,0.000162,2]
[401258345,1768079314915,-216.79771002,0.000162,2]
[401258346,1768079314939,-150.0,0.000162,2]
[401258347,1768079314964,-150.0,0.000162,2]
[401258348,1768079314989,-150.0,0.000162,2]
[401258349,1768079315018,-150.0,0.000162,2]
[401258350,1768079315043,-150.0,0.000162,2]
[401258351,1768079315068,-150.0,0.00016264,2]
[401258352,1768079315092,-1500.0,0.00016268,2]
[401258353,1768079315116,-500.0,0.00016268,2]
[401258354,1768079315140,-150.0,0.00016278,2]
[401258355,1768079315165,-150.0,0.00016295,2]
[401258356,1768079315190,-150.0,0.00016312,2]
[401258357,1768079315215,-150.0,0.00016329,2]
[401258358,1768079315242,-150.0,0.00016329,2]
[401258359,1768079315278,-150.0,0.00016338,2]
[401258360,1768079315303,-150.0,0.00016357,2]
[401258361,1768079315327,-10118.2181,0.00016367,2]
[401258362,1768079315353,-173.89659342,0.00016377,2]
[401258363,1768079315378,-173.89659342,0.00016377,2]
[401258364,1768079315403,-8706.57974541,0.00016377,2]
[401258365,1768079315428,-173.89659348,0.00016377,2]
[401258366,1768079315452,-681.45106647,0.00016386,2]
[401258367,1768079315476,-9841.61942577,0.00016386,2]
[401258368,1768079315502,-150.0,0.00016389,2]
[401258369,1768079315527,-150.0,0.00016393,2]
[401258370,1768079315553,-166.66,0.00016398,2]
[401258371,1768079315577,-834.0,0.000164,2]
[401258372,1768079315602,-150.0,0.00016425,2]
[401258373,1768079315626,-187.78006525,0.00016427,2]
[401258374,1768079315650,-150.0,0.00016435,2]
[401258375,1768079315683,-1140.471,0.00016436,2]
[401258376,1768079315714,-1032.06064161,0.00016436,2]
[401258377,1768079315739,-414.08933578,0.00016437,2]
[401258378,1768079315767,-500.0,0.00016437,2]
[401258379,1768079315793,-537.63319283,0.00016437,2]
[401258380,1768079315819,-500.0,0.00016437,2]
[401258381,1768079315848,-150.0,0.00016457,2]
[401258382,1768079315873,-150.0,0.00016457,2]
[401258383,1768079315903,-200.0,0.00016458,2]
[401258384,1768079315928,-200.0,0.00016458,2]
[401258385,1768079315952,-151.0,0.00016458,2]
[401258386,1768079315979,-151.0,0.00016458,2]
[401258387,1768079316004,-151.0,0.00016458,2]
[401258388,1768079316030,-500.0,0.00016458,2]
[401258389,1768079316057,-151.0,0.00016458,2]
[401258390,1768079316088,-151.0,0.00016458,2]
[401258391,1768079316114,-151.0,0.00016458,2]
[401258392,1768079316141,-151.0,0.00016458,2]
[401258393,1768079316166,-151.0,0.00016458,2]
[401258394,1768079316190,-151.0,0.00016458,2]
[401258395,1768079316215,-151.0,0.00016458,2]
[401258396,1768079316241,-151.0,0.00016458,2]
[401258397,1768079316268,-151.0,0.00016458,2]
[401258398,1768079316294,-151.0,0.00016458,2]
[401258399,1768079316318,-151.0,0.00016458,2]
[401258400,1768079316342,-151.0,0.00016458,2]
[401258401,1768079316367,-993.73,0.00016458,2]
[401258402,1768079316393,-500.0,0.00016466,2]
[401258403,1768079316422,-500.0,0.00016466,2]
[401258404,1768079316450,-500.0,0.00016466,2]
[401258405,1768079316479,-386.71036201,0.00016466,2]
[401258406,1768079316511,-500.0,0.00016466,2]
[401258407,1768079316546,-500.0,0.00016466,2]
[401258408,1768079316572,-500.0,0.00016466,2]
[401258409,1768079316603,-500.0,0.00016466,2]
[401258410,1768079316632,-500.0,0.00016466,2]
[401258411,1768079316662,-500.0,0.00016466,2]
[401258412,1768079316694,-500.0,0.00016466,2]
[401258413,1768079316733,-500.0,0.00016466,2]
[401258414,1768079316761,-500.0,0.00016466,2]
[401258415,1768079316790,-500.0,0.00016466,2]
[401258416,1768079316821,-500.0,0.00016466,2]
[401258417,1768079316870,-500.0,0.00016466,2]
[401258418,1768079316912,-500.0,0.00016466,2]
[401258419,1768079316954,-436.19483912,0.00016466,2]
[401258420,1768079316995,-500.0,0.00016466,2]
[401258421,1768079317029,-500.0,0.00016466,2]
[401258422,1768079317066,-500.0,0.00016466,2]
[401258423,1768079317103,-500.0,0.00016466,2]
[401258424,1768079317142,-500.0,0.00016466,2]
[401258425,1768079317178,-500.0,0.00016466,2]
[401258426,1768079317215,-500.0,0.00016466,2]
[401258427,1768079317252,-500.0,0.00016466,2]
[401258428,1768079317305,-583.81502126,0.00016466,2]
[401258429,1768079317350,-500.0,0.00016466,2]
[401258430,1768079317383,-500.0,0.00016466,2]
[401258431,1768079317420,-389.2100142,0.00016466,2]
[401258432,1768079317451,-500.0,0.00016466,2]
[401258433,1768079317487,-500.0,0.00016466,2]
[401258434,1768079317521,-500.0,0.00016466,2]
[401258435,1768079317558,-500.0,0.00016466,2]
[401258436,1768079317608,-500.0,0.00016466,2]
[401258437,1768079317647,-278.42002839,0.00016466,2]
[401258438,1768079317683,-500.0,0.00016466,2]
[401258439,1768079317717,-500.0,0.00016466,2]
[401258440,1768079317753,-500.0,0.00016466,2]
[401258441,1768079317788,-500.0,0.00016466,2]
[401258442,1768079317823,-500.0,0.00016466,2]
[401258443,1768079317859,-500.0,0.00016466,2]
[401258444,1768079317893,-500.0,0.00016466,2]
[401258445,1768079317932,-500.0,0.00016466,2]
[401258446,1768079317976,-500.0,0.00016466,2]
[401258447,1768079318020,-500.0,0.00016466,2]
[401258448,1768079318057,-500.0,0.00016466,2]
[401258449,1768079318090,-500.0,0.00016466,2]
[401258450,1768079318127,-295.01174619,0.00016466,2]
[401258451,1768079318161,-500.0,0.00016466,2]
[401258452,1768079318194,-500.0,0.00016466,2]
[401258453,1768079318227,-500.0,0.00016466,2]
[401258454,1768079318258,-500.0,0.00016466,2]
[401258455,1768079318292,-296.28439965,0.00016466,2]
[401258456,1768079318326,-500.0,0.00016466,2]
[401258457,1768079318361,-296.28439965,0.00016466,2]
[401258458,1768079318394,-500.0,0.00016466,2]
[401258459,1768079318426,-296.28439965,0.00016466,2]
[401258460,1768079318463,-500.0,0.00016466,2]
[401258461,1768079318496,-296.28439965,0.00016466,2]
[401258462,1768079318529,-500.0,0.00016466,2]
[401258463,1768079318561,-433.31191937,0.00016466,2]
[401258464,1768079318592,-500.0,0.00016466,2]
[401258465,1768079318624,-500.0,0.00016466,2]
[401258466,1768079318656,-296.28439965,0.00016466,2]
[401258467,1768079318687,-500.0,0.00016466,2]
[401258468,1768079318718,-296.28439965,0.00016466,2]
[401258469,1768079318751,-500.0,0.00016466,2]
[401258470,1768079318783,-296.28439965,0.00016466,2]
[401258471,1768079318815,-500.0,0.00016466,2]
[401258472,1768079318846,-500.0,0.00016466,2]
[401258473,1768079318879,-433.31191937,0.00016466,2]
[401258474,1768079318912,-500.0,0.00016466,2]
[401258475,1768079318943,-296.28439965,0.00016466,2]
[401258476,1768079318976,-500.0,0.00016466,2]
[401258477,1768079319009,-296.28439965,0.00016466,2]
[401258478,1768079319043,-500.0,0.00016466,2]
[401258479,1768079319070,-296.28439965,0.00016466,2]
[401258480,1768079319096,-500.0,0.00016466,2]
[401258481,1768079319123,-296.28439965,0.00016466,2]
[401258482,1768079319148,-500.0,0.00016466,2]
[401258483,1768079319173,-296.28439965,0.00016466,2]
[401258484,1768079319199,-500.0,0.00016466,2]
[401258485,1768079319224,-296.28439965,0.00016466,2]
[401258486,1768079319251,-500.0,0.00016467,2]
[401258487,1768079319278,-500.0,0.00016467,2]
[401258488,1768079319303,-500.0,0.00016467,2]
[401258489,1768079319327,-500.0,0.00016467,2]
[401258490,1768079319351,-500.0,0.00016467,2]
[401258491,1768079319378,-525.03126034,0.00016467,2]
[401258492,1768079319405,-500.0,0.00016467,2]
[401258493,1768079319434,-500.0,0.00016467,2]
[401258494,1768079319458,-500.0,0.00016467,2]
[401258495,1768079319482,-500.0,0.00016467,2]
[401258496,1768079319506,-500.0,0.00016467,2]
[401258497,1768079319530,-500.0,0.00016467,2]
[401258498,1768079319554,-500.0,0.00016467,2]
[401258499,1768079319578,-500.0,0.00016467,2]
[401258500,1768079319604,-500.0,0.00016467,2]
[401258501,1768079319629,-500.0,0.00016467,2]
[401258502,1768079319653,-500.0,0.00016467,2]
[401258503,1768079320234,-500.0,0.00016467,2]